bitfinex-derivatives/quotes_SOLF0:USTF0_20250705
["timestamp","ask_amount","ask_price","bid_price","bid_amount"]
[1751741103616,16.02363446,146.37,146.36,196.04]
[1751741104415,13.51648683,146.37,146.36,196.04]
[1751741104611,13.51648683,146.37,146.36,202.8707]
[1751741105013,8.84969083,146.37,146.36,202.8707]
[1751741105213,9.51052464,146.39,146.37,6.8299]
[1751741105415,9.51052464,146.4,146.38,199.08156832]
[1751741105722,2.50873622,146.39,146.38,196.04]
[1751741106018,7.19728854,146.39,146.38,199.08156832]
[1751741106215,7.19728854,146.39,146.38,245.46156832]
[1751741106516,4.68855232,146.39,146.38,252.29126832]
[1751741106908,6.8286,146.41,146.38,245.46156832]
[1751741107120,7.19734973,146.4,146.39,3.04156832]
[1751741108215,4.68823394,146.4,146.39,3.04156832]
[1751741110020,4.68823394,146.4,146.38,252.29116832]
[1751741110221,6.8286,146.41,146.38,252.29116832]
[1751741110520,4.72607452,146.4,146.38,252.29116832]
[1751741110721,6.8286,146.41,146.38,252.29116832]
[1751741110913,4.72594142,146.4,146.38,252.29116832]
[1751741111117,6.8286,146.41,146.38,252.29116832]
[1751741111414,4.72519645,146.4,146.38,252.29116832]
[1751741111619,6.8286,146.41,146.38,252.29116832]
[1751741111823,4.72520825,146.4,146.38,252.29116832]
[1751741112017,6.8286,146.41,146.38,252.29116832]
[1751741112217,4.72561561,146.4,146.38,252.29116832]
[1751741112419,6.8289,146.4,146.38,242.42]
[1751741112623,7.76584228,146.39,146.38,242.42]
[1751741113024,14.59514228,146.39,146.38,242.42]
[1751741113215,11.55357396,146.39,146.38,242.42]
[1751741116022,7.76584228,146.39,146.29,590.0]
[1751741116323,3.04156832,146.37,146.33,3.04156832]
[1751741116525,3.04156832,146.38,146.34,199.04156832]
[1751741116726,3.04156832,146.38,146.34,245.40156832]
[1751741116927,4.71084891,146.37,146.34,245.40156832]
[1751741117128,3.04156832,146.38,146.34,245.40156832]
[1751741117328,8.77804232,146.37,146.34,245.40156832]
[1751741117528,9.87146832,146.38,146.35,6.8311]
[1751741117724,8.77833729,146.37,146.36,196.0]
[1751741118028,8.77833729,146.37,146.35,6.8311]
[1751741118344,9.87146832,146.38,146.36,196.0]
[1751741118630,13.48910323,146.37,146.36,196.0]
[1751741120828,8.77832158,146.37,146.36,196.0]
[1751741125136,13.46251955,146.37,146.36,196.0]
[1751741125733,8.77832158,146.37,146.36,196.0]
[1751741126838,8.77832158,146.37,146.36,202.8307]
[1751741127034,8.77832158,146.37,146.36,205.87226832]
[1751741128335,6.8295,146.39,146.36,205.87226832]
[1751741128530,6.829,146.4,146.37,9.87176832]
[1751741128723,13.43847107,146.39,146.38,196.0]
[1751741129528,20.26777107,146.39,146.38,196.0]
[1751741129931,15.59343954,146.39,146.38,196.0]
[1751741130531,20.27250094,146.39,146.38,196.0]
[1751741133139,13.44320094,146.39,146.38,196.0]
[1751741135041,20.27250094,146.39,146.38,196.0]
[1751741135536,25.8432657,146.39,146.38,192.3117]
[1751741136033,6.8312,146.35,146.33,46.34]
[1751741136432,6.8331,146.31,146.29,589.94]
[1751741136633,3.04156832,146.3,146.28,46.34]
[1751741136942,3.04156832,146.29,146.28,242.32]
[1751741137140,3.04156832,146.29,146.28,46.34]
[1751741137326,3.04156832,146.29,146.28,242.32]
[1751741137728,2.425,146.32,146.28,242.32]
[1751741137936,4.75382999,146.34,146.28,242.32]
[1751741138238,7.17882999,146.36,146.29,4.75382999]
[1751741138436,20.39742499,146.35,146.31,6.8328]
[1751741138636,13.56592499,146.34,146.32,195.98]
[1751741138839,6.8315,146.35,146.32,195.98]
[1751741139041,13.5650692,146.34,146.32,195.98]
[1751741139237,2.425,146.36,146.32,195.98]
[1751741139443,13.56471423,146.35,146.32,195.98]
[1751741139634,6.8315,146.35,146.32,195.98]
[1751741139838,13.56395203,146.34,146.32,195.98]
[1751741140040,6.8315,146.35,146.32,195.98]
[1751741141643,6.8315,146.35,146.32,202.8123]
[1751741152648,6.8309,146.36,146.33,6.8321]
[1751741154048,6.8305,146.37,146.34,6.8314]
[1751741154252,13.47046533,146.36,146.34,6.8314]
[1751741154451,6.8305,146.37,146.34,6.8314]
[1751741154650,13.47122464,146.36,146.34,6.8314]
[1751741154948,6.8308,146.36,146.34,6.8314]
[1751741158253,6.8305,146.37,146.34,6.8314]
[1751741158453,13.49657469,146.36,146.34,6.8314]
[1751741158654,6.8305,146.37,146.34,6.8314]
[1751741158853,13.49656852,146.36,146.34,6.8314]
[1751741159055,6.8305,146.37,146.34,6.8314]
[1751741159248,13.49675147,146.36,146.34,6.8314]
[1751741159448,6.8305,146.37,146.34,6.8314]
[1751741159644,13.49785826,146.36,146.34,6.8314]
[1751741159848,6.8305,146.37,146.34,6.8314]
[1751741160049,13.51750703,146.36,146.34,6.8314]
[1751741160245,6.8305,146.37,146.34,6.8314]
[1751741160445,13.51814708,146.36,146.34,6.8314]
[1751741160650,6.8305,146.37,146.34,6.8314]
[1751741160855,13.51814708,146.36,146.34,6.8314]
[1751741161051,6.8305,146.37,146.34,6.8314]
[1751741161254,13.51830516,146.36,146.34,6.8314]
[1751741161452,6.8305,146.37,146.34,6.8314]
[1751741161658,13.52827214,146.36,146.34,6.8314]
[1751741161859,6.8305,146.37,146.34,6.8314]
[1751741162059,13.52827214,146.36,146.34,6.8314]
[1751741162260,6.8305,146.37,146.34,6.8314]
[1751741162459,13.52867083,146.36,146.34,6.8314]
[1751741162660,6.8305,146.37,146.34,6.8314]
[1751741162961,13.52903017,146.36,146.34,6.8314]
[1751741163163,6.8305,146.37,146.34,6.8314]
[1751741163360,13.52945762,146.36,146.34,6.8314]
[1751741163560,6.8305,146.37,146.34,6.8314]
[1751741163761,13.52920795,146.36,146.34,6.8314]
[1751741163961,6.8305,146.37,146.34,6.8314]
[1751741164166,13.52920795,146.36,146.34,6.8314]
[1751741164364,6.8305,146.37,146.34,6.8314]
[1751741164563,13.55098274,146.36,146.34,6.8314]
[1751741164764,6.8305,146.37,146.34,6.8314]
[1751741164959,13.55098072,146.36,146.34,6.8314]
[1751741165161,6.8305,146.37,146.34,6.8314]
[1751741165360,13.55067244,146.36,146.34,6.8314]
[1751741165558,6.8305,146.37,146.34,6.8314]
[1751741165761,13.568205,146.36,146.34,6.8314]
[1751741165960,6.8305,146.37,146.34,6.8314]
[1751741166160,13.56902011,146.36,146.34,6.8314]
[1751741166363,6.8305,146.37,146.34,6.8314]
[1751741166563,13.56928292,146.36,146.34,6.8314]
[1751741166765,6.8305,146.37,146.34,6.8314]
[1751741166966,13.56926901,146.36,146.34,6.8314]
[1751741167167,6.8305,146.37,146.34,6.8314]
[1751741167366,13.56947258,146.36,146.34,6.8314]
[1751741167564,6.8305,146.37,146.34,6.8314]
[1751741167760,4.8080656,146.36,146.34,6.8314]
[1751741168065,6.8305,146.37,146.34,6.8314]
[1751741169767,6.8305,146.37,146.34,9.87166577]
[1751741175677,6.8305,146.37,146.35,6.8312]
[1751741176469,9.87026577,146.38,146.34,3.04026577]
[1751741176770,13.57552524,146.37,146.34,3.04026577]
[1751741176968,9.87026577,146.38,146.35,6.8309]
[1751741177165,13.57548759,146.37,146.35,6.8309]
[1751741177371,9.87026577,146.38,146.35,6.8309]
[1751741177572,13.57741582,146.37,146.35,6.8309]
[1751741177765,9.87026577,146.38,146.35,6.8309]
[1751741178070,13.57758827,146.37,146.35,6.8309]
[1751741178261,9.87026577,146.38,146.35,6.8309]
[1751741178464,13.57945411,146.37,146.35,6.8309]
[1751741178662,9.87026577,146.38,146.35,6.8309]
[1751741178866,13.57949178,146.37,146.35,6.8309]
[1751741179064,9.87026577,146.38,146.35,6.8309]
[1751741179269,13.58120551,146.37,146.35,6.8309]
[1751741179469,9.87026577,146.38,146.35,6.8309]
[1751741179670,13.58333265,146.37,146.35,6.8309]
[1751741179870,2.3844,146.4,146.36,3.04026577]
[1751741180076,21.08053496,146.39,146.38,3.04026577]
[1751741180268,21.08053496,146.39,146.38,9.87006577]
[1751741181780,12.30216948,146.39,146.38,56.21006577]
[1751741182284,7.34341928,146.39,146.38,56.21006577]
[1751741182583,4.80600207,146.39,146.38,56.21006577]
[1751741185283,6.8283,146.42,146.39,6.8293]
[1751741185478,16.06445871,146.41,146.39,9.86956577]
[1751741185677,8.77306145,146.4,146.39,9.86956577]
[1751741187582,8.77306145,146.4,146.39,6.8293]
[1751741187782,8.77306145,146.4,146.39,9.86956577]
[1751741190084,8.77306145,146.4,146.38,56.20986577]
[1751741190276,9.86866577,146.41,146.38,56.20986577]
[1751741190473,8.8051212,146.4,146.38,53.1696]
[1751741190673,9.86866577,146.41,146.38,53.1696]
[1751741190877,13.60319166,146.4,146.38,53.1696]
[1751741191078,9.86866577,146.41,146.38,53.1696]
[1751741191281,9.86866577,146.41,146.39,6.8293]
[1751741191282,13.60314583,146.4,146.39,6.8293]
[1751741193280,9.86866577,146.41,146.39,6.8293]
[1751741193585,8.81605471,146.4,146.39,6.8293]
[1751741194487,9.86836577,146.42,146.39,6.8293]
[1751741194690,13.58642128,146.41,146.39,6.8293]
[1751741194886,9.86836577,146.42,146.39,6.8293]
[1751741195186,13.58642128,146.41,146.39,6.8293]
[1751741195386,6.8284,146.41,146.39,6.8293]
[1751741199291,14.35912464,146.44,146.4,3.04026577]
[1751741199491,16.12567922,146.43,146.41,198.94026577]
[1751741199783,13.58580943,146.42,146.41,198.94026577]
[1751741200184,13.58580943,146.42,146.41,205.76866577]
[1751741201492,9.2605,146.44,146.41,205.76866577]
[1751741201687,13.58281407,146.43,146.42,6.8279]
[1751741201894,13.58281407,146.43,146.42,9.86816577]
[1751741202396,13.58281407,146.43,146.42,56.18816577]
[1751741203395,6.8263,146.46,146.44,6.8269]
[1751741203595,13.58786745,146.45,146.44,6.8269]
[1751741205587,13.60721012,146.45,146.44,9.86716577]
[1751741206987,8.81185518,146.45,146.44,9.86716577]
[1751741207695,8.81185518,146.45,146.43,9.86756577]
[1751741207891,6.8262,146.46,146.43,9.86756577]
[1751741208097,8.83271178,146.45,146.43,9.86756577]
[1751741208293,6.8262,146.46,146.43,9.86756577]
[1751741208500,8.83186546,146.45,146.43,9.86756577]
[1751741208698,6.8262,146.46,146.43,9.86756577]
[1751741208898,8.83186546,146.45,146.43,9.86756577]
[1751741209096,6.8262,146.46,146.43,9.86756577]
[1751741209291,8.83186546,146.45,146.43,9.86756577]
[1751741209492,6.8262,146.46,146.43,9.86756577]
[1751741209695,13.65647474,146.45,146.43,9.86756577]
[1751741209896,6.8262,146.46,146.43,9.86756577]
[1751741210100,13.65647474,146.45,146.43,9.86756577]
[1751741210397,6.8262,146.46,146.43,9.86756577]
[1751741210597,6.8262,146.46,146.44,3.04026577]
[1751741210794,6.8262,146.46,146.45,195.84]
[1751741211096,20.50030192,146.46,146.45,195.84]
[1751741218797,6.8275,146.43,146.42,46.32]
[1751741219001,9.86776577,146.43,146.42,242.14]
[1751741219395,18.71037587,146.43,146.42,242.14]
[1751741219797,6.8275,146.43,146.42,242.14]
[1751741220502,15.67095232,146.43,146.42,242.14]
[1751741223206,15.67095232,146.43,146.42,46.32]
[1751741223502,15.67095232,146.43,146.42,242.14]
[1751741224801,8.84345232,146.43,146.42,245.18026577]
[1751741225499,8.84345232,146.43,146.42,252.00816577]
[1751741225893,8.84345232,146.43,146.42,245.18026577]
[1751741226303,8.84345232,146.43,146.42,242.14]
[1751741227105,15.67095232,146.43,146.42,242.14]
[1751741227302,23.48597324,146.43,146.42,242.14]
[1751741228611,23.48597324,146.43,146.42,46.32]
[1751741228803,23.48597324,146.43,146.42,242.14]
[1751741230308,26.03016885,146.43,146.42,242.14]
[1751741230804,26.03016885,146.43,146.42,195.82]
[1751741231405,23.48597324,146.43,146.42,195.82]
[1751741231605,26.03025875,146.43,146.42,195.82]
[1751741234611,6.8283,146.42,146.39,9.86956577]
[1751741234912,6.8283,146.42,146.4,195.84]
[1751741235305,8.84217606,146.41,146.4,195.84]
[1751741235612,8.84217606,146.41,146.39,9.86956577]
[1751741235805,6.8283,146.42,146.4,195.84]
[1751741236006,8.84218059,146.41,146.4,195.84]
[1751741239015,8.84218059,146.41,146.4,198.88026577]
[1751741239213,8.84218059,146.41,146.4,205.70916577]
[1751741248316,6.8276,146.43,146.4,205.70916577]
[1751741248517,13.63743072,146.42,146.41,3.04026577]
[1751741249127,13.63743072,146.42,146.41,9.86866577]
[1751741253127,13.63743072,146.42,146.41,3.04026577]
[1751741254528,13.63743072,146.42,146.41,9.86866577]
[1751741256436,13.63743072,146.42,146.4,205.70886577]
[1751741256732,8.86765805,146.41,146.4,205.70886577]
[1751741257135,13.64319446,146.41,146.4,205.70886577]
[1751741258428,13.64378323,146.41,146.4,205.70886577]
[1751741258632,13.64378323,146.41,146.4,195.84]
[1751741259432,13.64378323,146.41,146.39,9.86936577]
[1751741259735,6.8282,146.42,146.4,195.8]
[1751741259933,13.65645439,146.41,146.4,195.8]
[1751741260731,13.65645439,146.41,146.4,198.84026577]
[1751741263037,13.65645439,146.41,146.38,46.3]
[1751741263038,16.20922424,146.41,146.38,46.3]
[1751741263239,3.04026577,146.42,146.4,195.8]
[1751741263438,30.95706148,146.41,146.4,195.8]
[1751741264838,21.08839571,146.41,146.4,195.8]
[1751741265739,16.23119066,146.41,146.4,195.8]
[1751741266641,23.05959066,146.41,146.4,195.8]
[1751741266842,23.03253784,146.41,146.4,195.8]
[1751741267044,16.20413784,146.41,146.4,195.8]
[1751741267243,16.20413784,146.41,146.4,205.66916577]
[1751741267640,13.65037338,146.41,146.4,205.66916577]
[1751741268347,16.20292245,146.41,146.4,205.66916577]
[1751741268540,13.65037338,146.41,146.4,205.66916577]
[1751741268743,8.86778628,146.41,146.4,205.66916577]
[1751741269043,13.62922567,146.41,146.4,205.66916577]
[1751741273848,8.86778628,146.41,146.4,205.66916577]
[1751741274336,6.8267,146.45,146.42,6.8276]
[1751741274537,16.18179726,146.44,146.43,198.86026577]
[1751741276453,13.6291399,146.44,146.43,205.68776577]
[1751741276656,16.18073242,146.44,146.43,205.68776577]
[1751741276949,13.6291399,146.44,146.43,205.68776577]
[1751741280455,13.6291399,146.44,146.43,198.86026577]
[1751741280655,13.62962074,146.44,146.43,198.86026577]
[1751741281660,13.62962074,146.44,146.43,205.68776577]
[1751741282646,8.87799363,146.44,146.43,205.68776577]
[1751741285258,6.8263,146.46,146.43,205.68776577]
[1751741285459,13.72812776,146.45,146.43,205.68776577]
[1751741285654,6.8263,146.46,146.43,205.68776577]
[1751741285862,13.72856099,146.45,146.43,205.68776577]
[1751741286059,8.91030383,146.44,146.43,205.68776577]
[1751741286358,6.8263,146.46,146.43,205.68776577]
[1751741286560,13.72683453,146.45,146.43,205.68776577]
[1751741286861,6.8263,146.46,146.43,205.68776577]
[1751741287059,13.72739146,146.45,146.43,205.68776577]
[1751741287361,6.8263,146.46,146.43,205.68776577]
[1751741287661,13.72585355,146.45,146.43,205.68776577]
[1751741287865,6.8266,146.45,146.43,205.68776577]
[1751741291456,9.86656577,146.46,146.43,205.68776577]
[1751741291652,13.70130322,146.45,146.43,205.68776577]
[1751741291854,9.86656577,146.46,146.43,205.68776577]
[1751741292054,13.70038813,146.45,146.43,205.68776577]
[1751741292251,9.86656577,146.46,146.43,205.68776577]
[1751741292455,13.69961046,146.45,146.43,205.68776577]
[1751741292755,6.8263,146.46,146.43,205.68776577]
[1751741292954,13.69961046,146.45,146.43,205.68776577]
[1751741293156,6.8263,146.46,146.43,205.68776577]
[1751741293350,13.69891805,146.45,146.43,205.68776577]
[1751741293556,6.8263,146.46,146.43,205.68776577]
[1751741293862,13.69879688,146.45,146.43,205.68776577]
[1751741294062,6.8263,146.46,146.43,205.68776577]
[1751741294363,13.69867455,146.45,146.43,205.68776577]
[1751741294562,6.8263,146.46,146.43,205.68776577]
[1751741294859,13.6980691,146.45,146.43,205.68776577]
[1751741295062,6.8266,146.45,146.43,205.68776577]
[1751741295865,6.8263,146.46,146.43,205.68776577]
[1751741296064,13.69744388,146.45,146.43,205.68776577]
[1751741296364,6.8263,146.46,146.43,205.68776577]
[1751741296668,13.69691043,146.45,146.43,205.68776577]
[1751741296968,6.8263,146.46,146.43,205.68776577]
[1751741297261,13.69691043,146.45,146.43,205.68776577]
[1751741297461,6.8263,146.46,146.44,6.8269]
[1751741297664,13.69646578,146.45,146.44,6.8269]
[1751741297866,13.69646578,146.45,146.44,202.5869]
[1751741299267,8.89256713,146.45,146.44,205.62716577]
[1751741299667,6.8258,146.47,146.44,205.62716577]
[1751741299868,8.89419357,146.46,146.45,6.8265]
[1751741300056,8.89419357,146.46,146.44,198.80026577]
[1751741300254,3.04026577,146.48,146.44,198.80026577]
[1751741300460,13.69735001,146.47,146.44,198.80026577]
[1751741300664,8.89347926,146.46,146.44,198.80026577]
[1751741300965,3.04026577,146.48,146.44,198.80026577]
[1751741301161,13.69729528,146.47,146.44,198.80026577]
[1751741301361,8.8934896,146.46,146.44,198.80026577]
[1751741301555,6.8258,146.47,146.45,6.8265]
[1751741301766,8.89280078,146.46,146.45,6.8265]
[1751741302159,6.8265,146.45,146.44,195.76]
[1751741302361,11.62971809,146.45,146.44,195.76]
[1751741302561,6.8275,146.43,146.42,46.3]
[1751741302863,6.8275,146.43,146.42,242.04]
[1751741303056,11.63018183,146.43,146.42,242.04]
[1751741303461,20.52194356,146.43,146.42,242.04]
[1751741303863,23.56220933,146.43,146.42,46.3]
[1751741304063,31.02368995,146.43,146.42,242.04]
[1751741304563,18.7595275,146.43,146.42,242.04]
[1751741304764,31.03567775,146.43,146.42,242.04]
[1751741305166,26.12833845,146.43,146.42,242.04]
[1751741306667,13.70552096,146.43,146.42,242.04]
[1751741307569,20.53302096,146.43,146.42,242.04]
[1751741307766,20.53302096,146.43,146.42,46.3]
[1751741307968,20.53302096,146.43,146.42,242.06]
[1751741309476,23.57328673,146.43,146.42,242.06]
[1751741309768,30.96541429,146.43,146.42,242.06]
[1751741311271,26.11992997,146.43,146.42,242.18]
[1751741311472,23.0796642,146.43,146.42,242.18]
[1751741311674,20.53302096,146.43,146.42,242.18]
[1751741313265,13.70552096,146.43,146.42,242.18]
[1751741314475,13.70552096,146.43,146.42,249.0079]
[1751741314680,12.58430174,146.48,146.42,245.22026577]
[1751741314869,21.06688432,146.47,146.44,3.04026577]
[1751741315072,23.05374472,146.46,146.45,195.9]
[1751741315575,15.69845463,146.46,146.45,195.9]
[1751741315768,23.05347189,146.46,146.45,195.9]
[1751741317575,20.49696855,146.46,146.45,195.9]
[1751741318374,23.05378518,146.46,146.45,195.9]
[1751741319372,20.49696855,146.46,146.45,195.9]
[1751741319571,27.89309356,146.46,146.45,195.9]
[1751741320177,37.43712953,146.46,146.45,195.9]
[1751741320378,6.8275,146.43,146.42,46.3]
[1751741320574,23.06201651,146.43,146.42,46.3]
[1751741320876,21.12340002,146.43,146.41,195.96]
[1751741321071,21.12340002,146.43,146.39,83.05358562]
[1751741321072,6.8288,146.41,146.39,83.05358562]
[1751741321275,6.8288,146.41,146.4,195.96]
[1751741321474,20.52142563,146.41,146.4,195.96]
[1751741322279,15.6913929,146.41,146.4,195.96]
[1751741322474,20.52047084,146.41,146.4,195.96]
[1751741327179,20.52047084,146.41,146.38,53.1096]
[1751741327379,6.8288,146.41,146.39,195.96]
[1751741332182,6.8289,146.4,146.39,195.96]
[1751741332373,4.74415948,146.42,146.38,46.28]
[1751741332580,13.6168542,146.41,146.39,195.9]
[1751741332882,6.8293,146.39,146.38,46.28]
[1751741333185,21.01299076,146.39,146.37,195.96]
[1751741333379,20.91506167,146.38,146.37,195.96]
[1751741334585,16.17090219,146.38,146.37,195.96]
[1751741334885,16.17090219,146.38,146.34,46.3]
[1751741335083,13.61571987,146.37,146.35,195.98]
[1751741335280,6.8301,146.38,146.35,195.98]
[1751741335473,6.8301,146.38,146.36,195.96]
[1751741337287,6.8295,146.39,146.36,195.96]
[1751741337487,4.74415948,146.4,146.36,195.96]
[1751741337687,6.8301,146.38,146.36,195.96]
[1751741341389,6.8303,146.37,146.36,195.96]
[1751741343789,6.8303,146.37,146.34,53.1315]
[1751741343992,6.8303,146.37,146.35,195.92]
[1751741345590,6.8307,146.36,146.35,195.92]
[1751741345791,2.545849,146.39,146.35,195.92]
[1751741345993,4.74415948,146.4,146.35,195.92]
[1751741346294,6.8305,146.37,146.35,195.92]
[1751741348600,6.8305,146.37,146.34,53.1314]
[1751741348797,6.8305,146.37,146.35,195.9]
[1751741348996,6.8307,146.36,146.35,195.9]
[1751741349297,2.54599965,146.39,146.35,195.9]
[1751741349499,2.54599965,146.39,146.34,53.1314]
[1751741349500,13.49005315,146.38,146.36,195.88]
[1751741349796,4.74415948,146.4,146.36,195.88]
[1751741349995,16.03591567,146.39,146.36,195.88]
[1751741350196,8.77087885,146.38,146.36,195.88]
[1751741350396,4.74415948,146.4,146.36,195.88]
[1751741350596,6.8305,146.37,146.36,195.88]
[1751741352498,14.12223597,146.41,146.34,46.3]
[1751741352499,4.74415948,146.38,146.34,46.3]
[1751741352698,4.74415948,146.38,146.35,195.88]
[1751741352900,8.79093261,146.37,146.35,195.88]
[1751741353097,4.74415948,146.38,146.35,195.88]
[1751741353690,6.8307,146.36,146.35,195.88]
[1751741353894,3.04129814,146.36,146.34,242.2]
[1751741354095,3.04129814,146.35,146.34,242.2]
[1751741354291,3.04129814,146.35,146.34,46.3]
[1751741354602,9.87249814,146.35,146.34,242.18]
[1751741354789,9.87249814,146.35,146.31,9.87419814]
[1751741354790,9.87249814,146.35,146.31,6.8329]
[1751741354990,3.04129814,146.33,146.3,46.34]
[1751741355198,3.04129814,146.33,146.31,195.88]
[1751741355502,3.04129814,146.33,146.3,49.38129814]
[1751741355701,3.04129814,146.33,146.31,202.733]
[1751741355902,6.832,146.34,146.31,202.733]
[1751741358598,11.96333597,146.39,146.32,4.75295588]
[1751741358796,13.48350451,146.38,146.32,4.75295588]
[1751741358995,8.77027386,146.37,146.35,6.8309]
[1751741359199,11.96333597,146.39,146.36,195.94]
[1751741359397,13.48285913,146.38,146.36,195.94]
[1751741359598,11.96333597,146.39,146.36,195.94]
[1751741359599,8.76922471,146.37,146.36,195.94]
[1751741362809,9.2491,146.39,146.36,195.94]
[1751741363108,15.96306954,146.38,146.36,195.94]
[1751741363309,8.74940072,146.37,146.36,195.94]
[1751741364903,13.42840875,146.37,146.36,195.94]
[1751741367709,13.42840875,146.37,146.34,46.36]
[1751741367904,4.75295588,146.38,146.34,46.36]
[1751741367905,18.18136463,146.36,146.34,46.36]
[1751741368109,18.18136463,146.36,146.3,46.38]
[1751741368110,8.74940072,146.35,146.3,46.38]
[1751741368311,4.75295588,146.32,146.26,46.38]
[1751741368605,4.75295588,146.32,146.27,196.14]
[1751741368812,6.8332,146.31,146.28,196.16]
[1751741370003,6.8332,146.31,146.28,202.9942]
[1751741370207,6.8332,146.31,146.29,196.14]
[1751741370808,6.8332,146.31,146.29,196.16]
[1751741372605,6.8335,146.3,146.28,196.16]
[1751741372805,4.75295588,146.32,146.26,46.38]
[1751741373112,4.75295588,146.3,146.26,46.38]
[1751741373314,4.75295588,146.3,146.27,196.16]
[1751741373510,6.8343,146.29,146.27,196.16]
[1751741373707,4.75295588,146.32,146.27,196.16]
[1751741374005,22.88535998,146.31,146.27,196.16]
[1751741374210,4.73032814,146.3,146.27,196.16]
[1751741374408,6.8334,146.31,146.28,196.34]
[1751741374609,4.72963836,146.3,146.28,196.34]
[1751741374908,6.8334,146.31,146.28,196.34]
[1751741376910,4.75295588,146.32,146.26,46.38]
[1751741377213,4.75295588,146.3,146.26,46.38]
[1751741377414,4.75295588,146.3,146.26,242.72]
[1751741377711,8.72782573,146.29,146.26,46.38]
[1751741377914,8.72782573,146.28,146.26,46.38]
[1751741378215,4.75295588,146.28,146.26,46.38]
[1751741379004,6.8352,146.27,146.23,6.8366]
[1751741379214,4.75295588,146.28,146.23,196.34]
[1751741379413,8.72009524,146.27,146.23,196.34]
[1751741379615,4.75295588,146.28,146.23,196.34]
[1751741379812,8.72027302,146.27,146.22,590.04]
[1751741380015,4.75295588,146.26,146.21,46.4]
[1751741380212,6.836,146.25,146.22,196.4]
[1751741381515,4.75295588,146.26,146.22,196.4]
[1751741381516,6.8365,146.24,146.22,196.4]
[1751741381815,4.75295588,146.26,146.22,196.4]
[1751741382117,6.8361,146.25,146.22,196.4]
[1751741382311,4.75295588,146.26,146.23,196.4]
[1751741383113,4.75295588,146.24,146.21,46.4]
[1751741384119,6.8373,146.22,146.21,46.4]
[1751741384321,4.75295588,146.22,146.16,2.274]
[1751741384527,6.8389,146.19,146.16,46.4]
[1751741385021,6.8389,146.19,146.17,196.56]
[1751741385321,6.8389,146.19,146.16,242.96]
[1751741386114,6.8389,146.19,146.16,249.8]
[1751741388728,4.75295588,146.2,146.16,46.4]
[1751741389020,4.75295588,146.2,146.17,196.56]
[1751741389223,4.75295588,146.18,146.17,196.56]
[1751741389422,4.75295588,146.18,146.12,46.42]
[1751741389623,4.75295588,146.16,146.09,7.11375588]
[1751741389823,4.75295588,146.16,146.1,196.68]
[1751741390414,4.75295588,146.16,146.11,6.8421]
[1751741390415,6.8407,146.15,146.11,6.8421]
[1751741390723,6.8407,146.15,146.12,196.66]
[1751741390919,6.8412,146.14,146.1,6.8427]
[1751741391127,4.75295588,146.14,146.1,6.8427]
[1751741391415,4.75295588,146.16,146.11,196.66]
[1751741391619,6.8407,146.15,146.11,203.5021]
[1751741392523,4.75295588,146.16,146.11,196.66]
[1751741393320,46.42,146.18,146.11,196.66]
[1751741393518,7.06715588,146.21,146.13,4.75295588]
[1751741393721,8.5716549,146.2,146.13,4.75295588]
[1751741394027,15.4099549,146.2,146.16,6.8398]
[1751741394230,4.75295588,146.21,146.16,196.9]
[1751741394424,6.839,146.19,146.16,196.9]
[1751741396930,6.839,146.19,146.16,203.74]
[1751741397133,6.8383,146.2,146.16,203.74]
[1751741397824,6.8388,146.19,146.16,196.9]
[1751741398222,4.75295588,146.19,146.16,196.9]
[1751741398428,6.8394,146.18,146.16,196.9]
[1751741399732,11.59185588,146.19,146.16,196.9]
[1751741402033,6.8383,146.2,146.16,203.7401]
[1751741403133,51.2218,146.23,146.16,196.9]
[1751741403134,51.17295588,146.23,146.16,196.9]
[1751741403528,46.42,146.23,146.16,196.9]
[1751741403833,51.17295588,146.23,146.16,196.9]
[1751741404527,6.838,146.21,146.18,6.8391]
[1751741405251,6.8375,146.22,146.19,6.8387]